Workbook

Sheet руб.
A1: =TODAY() -> 2019-12-17 | D1: ЕКБ Сулимова
A2: =A1-1 -> 2019-12-16 | D2: План | E2: у.е. | F2: руб | H2: руб | O2: Количество чеков | U2: Средний чек | AD2: С 1-15 | AE2: С 15-31 | AU2: TRUE
E3: =SUM(B5:B35) -> 168000 | F3: =E3*70 -> 11760000 | H3: =E3*70 -> 11760000 | AJ3: ГРАФИК.xlsx
A4: коэф. по ТО | B4: план по ТО | E4: Факт | F4: План из рейтинга | G4: Корректировка плана | H4: План | I4: Выполнение | J4: План накопительно | K4: Факт накопительно | L4: Выполнение накопительно | M4: коэф. По чекам | N4: Разница | O4: Количество чеков | P4: план по чекам | Q4: Корректировка | R4: План по чекам | S4: Выполнение | T4: Средний чек | U4: Средний чек | V4: Кол-во ед. товара | W4: Среднее кол-во в чеке | X4: Штуки в чеке | Y4: Средняя цена товара (руб.) | Z4: Средняя цена товара (руб.) | AD4: 5 SKY | AE4: 5 SKY | AR4: Ограничение
A5: 0.02521589894 | B5: 4236.271021 | C5: =WEEKDAY(D5) -> 1900-01-01 | D5: 2019-12-01 | E5: 306110 | F5: =B5*70 -> 296538.9715 | H5: =MAX(F5,G5) -> 296538.9715 | I5: =IFERROR(E5/H5,0) -> 1.032275786 | J5: =H5 -> 296538.9715 | K5: =E5 -> 306110 | L5: =K5/J5 -> 1.032275786 | M5: 0.02809346273 | N5: =E5-H5 -> 9571.028514 | O5: 1041 | P5: 1025.41139 | R5: =MAX(P5,Q5) -> 1025.41139 | S5: =IFERROR(O5/R5,0) -> 1.015202299 | T5: =E5/O5 -> 294.0537944 | U5: =IFERROR(T5,0) -> 294.0537944 | V5: 4864 | W5: =V5/O5 -> 4.672430355 | X5: =IFERROR(W5,0) -> 4.672430355 | Y5: =IFERROR(Z5,0) -> 62.93379934 | Z5: =E5/V5 -> 62.93379934 | AA5: =H5/R5 -> 289.1902455 | AD5: 5094 | AR5: 2
A6: 0.01827673681 | B6: 3070.491784 | C6: =WEEKDAY(D6) -> 1900-01-02 | D6: 2019-12-02 | E6: 209230 | F6: =B6*70 -> 214934.4249 | G6: =IFERROR($F6+IF($E5>0,SUMPRODUCT(($F$5:$F5-$E$5:$E5)*($F6/SUM($F6:$F$35))),SUMPRODUCT(($F$5:$F5-$E$5:$E5)*($F6/SUMIF($E$6:$E$35,"",$F$6:$F$35))*($E$5:$E5>0))),"") -> 214754.9727 | H6: 214934.4249 | I6: 0.9734596964 | J6: =F6+J5 -> 511473.3964 | K6: =E6+K5 -> 515340 | L6: =K6/J6 -> 1.007559736 | M6: 0.02425179911 | N6: -5704.424896 | O6: 894 | P6: 885.1906674 | Q6: =IFERROR($P6+IF($O5>0,SUMPRODUCT(($P$5:$P5-$O$5:$O5)*($P6/SUM($P6:$P$35))),SUMPRODUCT(($P$5:$P5-$O$5:$O5)*($P6/SUMIF($O$6:$O$35,"",$P$6:$P$35))*($O$5:$O5>0))),"") -> 884.8016878 | R6: =MAX(P6,Q6) -> 885.1906674 | S6: =IFERROR(O6/R6,0) -> 1.009951904 | T6: 234.0380313 | U6: =IFERROR(T6,0) -> 234.0380313 | V6: 3455 | W6: 3.864653244 | X6: =IFERROR(W6,0) -> 3.864653244 | Y6: =IFERROR(Z6,0) -> 60.55861071 | Z6: 60.55861071 | AA6: 242.8114448 | AD6: 3975 | AR6: 2
A7: 0.02176837174 | B7: 3657.086453 | C7: =WEEKDAY(D7) -> 1900-01-03 | D7: 2019-12-03 | E7: 273910 | F7: 255996.0517 | G7: =IFERROR($F7+IF($E6>0,SUMPRODUCT(($F$5:$F6-$E$5:$E6)*($F7/SUM($F7:$F$35))),SUMPRODUCT(($F$5:$F6-$E$5:$E6)*($F7/SUMIF($E$6:$E$35,"",$F$6:$F$35))*($E$5:$E6>0))),"") -> 255908.0548 | H7: 255996.0517 | I7: 1.06997744 | J7: 767469.4481 | K7: 789250 | L7: =K7/J7 -> 1.028379699 | M7: 0.02399599579 | N7: 17913.9483 | O7: 1006 | P7: 875.8538463 | Q7: =IFERROR($P7+IF($O6>0,SUMPRODUCT(($P$5:$P6-$O$5:$O6)*($P7/SUM($P7:$P$35))),SUMPRODUCT(($P$5:$P6-$O$5:$O6)*($P7/SUMIF($O$6:$O$35,"",$P$6:$P$35))*($O$5:$O6>0))),"") -> 875.2360549 | R7: 875.8538463 | S7: =IFERROR(O7/R7,0) -> 1.14859346 | T7: 272.2763419 | U7: 272.2763419 | V7: 4499 | W7: 4.472166998 | X7: 4.472166998 | Y7: 60.88241832 | Z7: 60.88241832 | AA7: 292.2817006 | AD7: 4482 | AR7: 2
A8: 0.0202644097 | B8: 3404.420829 | C8: 1900-01-04 | D8: 2019-12-04 | E8: 243530 | F8: 238309.458 | G8: =IFERROR($F8+IF($E7>0,SUMPRODUCT(($F$5:$F7-$E$5:$E7)*($F8/SUM($F8:$F$35))),SUMPRODUCT(($F$5:$F7-$E$5:$E7)*($F8/SUMIF($E$6:$E$35,"",$F$6:$F$35))*($E$5:$E7>0))),"") -> 237837.2727 | H8: 238309.458 | I8: 1.021906566 | J8: 1005778.906 | K8: 1032780 | L8: 1.026845954 | M8: 0.02691358147 | N8: 5220.541976 | O8: 903 | P8: 982.3457236 | Q8: =IFERROR($P8+IF($O7>0,SUMPRODUCT(($P$5:$P7-$O$5:$O7)*($P8/SUM($P8:$P$35))),SUMPRODUCT(($P$5:$P7-$O$5:$O7)*($P8/SUMIF($O$6:$O$35,"",$P$6:$P$35))*($O$5:$O7>0))),"") -> 977.8426156 | R8: 982.3457236 | S8: 0.9192283106 | T8: 269.6899225 | U8: 269.6899225 | V8: 3905 | W8: 4.324473976 | X8: 4.324473976 | Y8: 62.36363636 | Z8: 62.36363636 | AA8: 242.5922486 | AD8: 3338
A9: 0.02107070628 | B9: 3539.878655 | C9: 1900-01-05 | D9: 2019-12-05 | E9: 236600 | F9: 247791.5059 | G9: =IFERROR($F9+IF($E8>0,SUMPRODUCT(($F$5:$F8-$E$5:$E8)*($F9/SUM($F9:$F$35))),SUMPRODUCT(($F$5:$F8-$E$5:$E8)*($F9/SUMIF($E$6:$E$35,"",$F$6:$F$35))*($E$5:$E8>0))),"") -> 247169.3649 | H9: 247791.5059 | I9: 0.9548349899 | J9: 1253570.412 | K9: 1269380 | L9: 1.012611647 | M9: 0.02603054806 | N9: -11191.50586 | O9: 888 | P9: 950.115004 | Q9: =IFERROR($P9+IF($O8>0,SUMPRODUCT(($P$5:$P8-$O$5:$O8)*($P9/SUM($P9:$P$35))),SUMPRODUCT(($P$5:$P8-$O$5:$O8)*($P9/SUMIF($O$6:$O$35,"",$P$6:$P$35))*($O$5:$O8>0))),"") -> 947.9321599 | R9: 950.115004 | S9: 0.9346236995 | T9: 266.4414414 | U9: =IFERROR(T9,0) -> 266.4414414 | V9: 3812 | W9: 4.292792793 | X9: =IFERROR(W9,0) -> 4.292792793 | Y9: 62.06715635 | Z9: 62.06715635 | AA9: 260.8015922 | AD9: 4137
A10: 0.02200766859 | B10: 3697.288323 | C10: 1900-01-06 | D10: 2019-12-06 | E10: 240730 | F10: 258810.1826 | G10: =IFERROR($F10+IF($E9>0,SUMPRODUCT(($F$5:$F9-$E$5:$E9)*($F10/SUM($F10:$F$35))),SUMPRODUCT(($F$5:$F9-$E$5:$E9)*($F10/SUMIF($E$6:$E$35,"",$F$6:$F$35))*($E$5:$E9>0))),"") -> 258420.7371 | H10: 258810.1826 | I10: 0.9301411465 | J10: 1512380.595 | K10: 1510110 | L10: 0.9984986619 | M10: 0.02566672786 | N10: -18080.18263 | O10: 909 | P10: 936.8355668 | Q10: =IFERROR($P10+IF($O9>0,SUMPRODUCT(($P$5:$P9-$O$5:$O9)*($P10/SUM($P10:$P$35))),SUMPRODUCT(($P$5:$P9-$O$5:$O9)*($P10/SUMIF($O$6:$O$35,"",$P$6:$P$35))*($O$5:$O9>0))),"") -> 936.4498982 | R10: 936.8355668 | S10: 0.9702876707 | T10: 264.8294829 | U10: 264.8294829 | V10: 3782 | W10: 4.160616062 | X10: 4.160616062 | Y10: 63.65150714 | Z10: 63.65150714 | AA10: 276.2599882 | AD10: 3933 | AR10: 1
A11: 0.03088387766 | B11: 5188.491447 | C11: 1900-01-07 | D11: 2019-12-07 | E11: 350770 | F11: 363194.4013 | G11: =IFERROR($F11+IF($E10>0,SUMPRODUCT(($F$5:$F10-$E$5:$E10)*($F11/SUM($F11:$F$35))),SUMPRODUCT(($F$5:$F10-$E$5:$E10)*($F11/SUMIF($E$6:$E$35,"",$F$6:$F$35))*($E$5:$E10>0))),"") -> 363274.8753 | H11: 363274.8753 | I11: 0.9655773737 | J11: 1875574.996 | K11: 1860880 | L11: 0.9921650716 | M11: 0.03503794015 | N11: -12504.87529 | O11: 1177 | P11: 1278.884816 | Q11: =IFERROR($P11+IF($O10>0,SUMPRODUCT(($P$5:$P10-$O$5:$O10)*($P11/SUM($P11:$P$35))),SUMPRODUCT(($P$5:$P10-$O$5:$O10)*($P11/SUMIF($O$6:$O$35,"",$P$6:$P$35))*($O$5:$O10>0))),"") -> 1279.496481 | R11: 1279.496481 | S11: 0.9198931121 | T11: 298.0203908 | U11: 298.0203908 | V11: 5335 | W11: 4.53271028 | X11: 4.53271028 | Y11: 65.74882849 | Z11: 65.74882849 | AA11: 283.9201832 | AD11: 3790 | AR11: 1
A12: 0.02645414625 | B12: 4444.296569 | C12: 1900-01-01 | D12: 2019-12-08 | E12: 336350 | F12: 311100.7599 | G12: =IFERROR($F12+IF($E11>0,SUMPRODUCT(($F$5:$F11-$E$5:$E11)*($F12/SUM($F12:$F$35))),SUMPRODUCT(($F$5:$F11-$E$5:$E11)*($F12/SUMIF($E$6:$E$35,"",$F$6:$F$35))*($E$5:$E11>0))),"") -> 311563.2677 | H12: 311563.2677 | I12: 1.079556016 | J12: 2186675.756 | K12: 2197230 | L12: =K12/J12 -> 1.004826616 | M12: 0.03084834906 | N12: 24786.73226 | O12: 1108 | P12: 1125.964741 | Q12: =IFERROR($P12+IF($O11>0,SUMPRODUCT(($P$5:$P11-$O$5:$O11)*($P12/SUM($P12:$P$35))),SUMPRODUCT(($P$5:$P11-$O$5:$O11)*($P12/SUMIF($O$6:$O$35,"",$P$6:$P$35))*($O$5:$O11>0))),"") -> 1130.406735 | R12: =MAX(P12,Q12) -> 1130.406735 | S12: 0.9801781661 | T12: 303.5649819 | U12: 303.5649819 | V12: 4560 | W12: 4.115523466 | X12: 4.115523466 | Y12: 73.76096491 | Z12: 73.76096491 | AA12: 275.6204985 | AD12: 3555 | AR12: 1
A13: 0.02371874814 | B13: 3984.749687 | C13: 1900-01-02 | D13: 2019-12-09 | E13: 244230 | F13: 278932.4781 | G13: =IFERROR($F13+IF($E12>0,SUMPRODUCT(($F$5:$F12-$E$5:$E12)*($F13/SUM($F13:$F$35))),SUMPRODUCT(($F$5:$F12-$E$5:$E12)*($F13/SUMIF($E$6:$E$35,"",$F$6:$F$35))*($E$5:$E12>0))),"") -> 278624.9651 | H13: 278932.4781 | I13: 0.8755882487 | J13: 2465608.234 | K13: 2441460 | L13: 0.9902059729 | M13: 0.02725754261 | N13: -34702.47809 | O13: 871 | P13: 994.9003054 | Q13: =IFERROR($P13+IF($O12>0,SUMPRODUCT(($P$5:$P12-$O$5:$O12)*($P13/SUM($P13:$P$35))),SUMPRODUCT(($P$5:$P12-$O$5:$O12)*($P13/SUMIF($O$6:$O$35,"",$P$6:$P$35))*($O$5:$O12>0))),"") -> 999.6091015 | R13: 999.6091015 | S13: 0.8713406058 | T13: 280.401837 | U13: 280.401837 | V13: 3821 | W13: 4.386911596 | X13: 4.386911596 | Y13: 63.91782256 | Z13: 63.91782256 | AA13: 279.041555 | AD13: 2783
A14: 0.02394127524 | B14: 4022.134241 | C14: 1900-01-03 | D14: 2019-12-10 | E14: 251790 | F14: 281549.3969 | G14: =IFERROR($F14+IF($E13>0,SUMPRODUCT(($F$5:$F13-$E$5:$E13)*($F14/SUM($F14:$F$35))),SUMPRODUCT(($F$5:$F13-$E$5:$E13)*($F14/SUMIF($E$6:$E$35,"",$F$6:$F$35))*($E$5:$E13>0))),"") -> 282280.9047 | H14: 282280.9047 | I14: 0.8919838211 | J14: 2747157.631 | K14: 2693250 | L14: 0.980376943 | M14: 0.0278381805 | N14: -30490.90472 | O14: 942 | P14: 1016.093588 | Q14: =IFERROR($P14+IF($O13>0,SUMPRODUCT(($P$5:$P13-$O$5:$O13)*($P14/SUM($P14:$P$35))),SUMPRODUCT(($P$5:$P13-$O$5:$O13)*($P14/SUMIF($O$6:$O$35,"",$P$6:$P$35))*($O$5:$O13>0))),"") -> 1025.66426 | R14: 1025.66426 | S14: 0.9184291942 | T14: 267.2929936 | U14: 267.2929936 | V14: 4098 | W14: 4.350318471 | X14: 4.350318471 | Y14: 61.44216691 | Z14: 61.44216691 | AA14: 275.2176474
A15: 0.02502622733 | B15: 4204.406192 | C15: 1900-01-04 | D15: 2019-12-11 | E15: 262500 | F15: 294308.4334 | G15: =IFERROR($F15+IF($E14>0,SUMPRODUCT(($F$5:$F14-$E$5:$E14)*($F15/SUM($F15:$F$35))),SUMPRODUCT(($F$5:$F14-$E$5:$E14)*($F15/SUMIF($E$6:$E$35,"",$F$6:$F$35))*($E$5:$E14>0))),"") -> 296068.7516 | H15: 296068.7516 | I15: 0.8866183905 | J15: 3041466.064 | K15: 2955750 | L15: 0.9718175175 | M15: 0.02618850157 | N15: -33568.75159 | O15: 1004 | P15: 955.8803073 | Q15: =IFERROR($P15+IF($O14>0,SUMPRODUCT(($P$5:$P14-$O$5:$O14)*($P15/SUM($P15:$P$35))),SUMPRODUCT(($P$5:$P14-$O$5:$O14)*($P15/SUMIF($O$6:$O$35,"",$P$6:$P$35))*($O$5:$O14>0))),"") -> 967.9098504 | R15: 967.9098504 | S15: 1.037286685 | T15: 261.4541833 | U15: 261.4541833 | V15: 4317 | W15: 4.299800797 | X15: 4.299800797 | Y15: 60.80611536 | Z15: 60.80611536 | AA15: 305.8846353
A16: 0.02545464486 | B16: 4276.380337 | C16: 1900-01-05 | D16: 2019-12-12 | E16: 286790 | F16: 299346.6236 | G16: =IFERROR($F16+IF($E15>0,SUMPRODUCT(($F$5:$F15-$E$5:$E15)*($F16/SUM($F16:$F$35))),SUMPRODUCT(($F$5:$F15-$E$5:$E15)*($F16/SUMIF($E$6:$E$35,"",$F$6:$F$35))*($E$5:$E15>0))),"") -> 302289.643 | H16: 302289.643 | I16: 0.948725855 | J16: 3340812.688 | K16: 3242540 | L16: 0.9705841971 | M16: 0.028792334 | N16: -15499.64299 | O16: 1005 | P16: 1050.920191 | Q16: =IFERROR($P16+IF($O15>0,SUMPRODUCT(($P$5:$P15-$O$5:$O15)*($P16/SUM($P16:$P$35))),SUMPRODUCT(($P$5:$P15-$O$5:$O15)*($P16/SUMIF($O$6:$O$35,"",$P$6:$P$35))*($O$5:$O15>0))),"") -> 1062.656818 | R16: 1062.656818 | S16: 0.9457427673 | T16: 285.3631841 | U16: 285.3631841 | V16: 4428 | W16: 4.405970149 | X16: 4.405970149 | Y16: 64.76738934 | Z16: 64.76738934 | AA16: 284.4659139 | AR16: 1
A17: 0.02707297264 | B17: 4548.259403 | C17: 1900-01-06 | D17: 2019-12-13 | E17: 298439 | F17: 318378.1582 | G17: =IFERROR($F17+IF($E16>0,SUMPRODUCT(($F$5:$F16-$E$5:$E16)*($F17/SUM($F17:$F$35))),SUMPRODUCT(($F$5:$F16-$E$5:$E16)*($F17/SUMIF($E$6:$E$35,"",$F$6:$F$35))*($E$5:$E16>0))),"") -> 322094.4168 | H17: 322094.4168 | I17: 0.9265575075 | J17: 3659190.846 | K17: 3540979 | L17: 0.9676945394 | M17: 0.03018717327 | N17: -23655.4168 | O17: 993 | P17: 1101.831824 | Q17: =IFERROR($P17+IF($O16>0,SUMPRODUCT(($P$5:$P16-$O$5:$O16)*($P17/SUM($P17:$P$35))),SUMPRODUCT(($P$5:$P16-$O$5:$O16)*($P17/SUMIF($O$6:$O$35,"",$P$6:$P$35))*($O$5:$O16>0))),"") -> 1116.738339 | R17: 1116.738339 | S17: 0.8891966592 | T17: 300.5427996 | U17: 300.5427996 | V17: 4500 | W17: 4.531722054 | X17: 4.531722054 | Y17: 66.31977778 | Z17: 66.31977778 | AA17: 288.4242491 | AR17: 1
A18: 0.04067103975 | B18: 6832.734678 | C18: 1900-01-07 | D18: 2019-12-14 | E18: 432067 | F18: 478291.4275 | G18: =IFERROR($F18+IF($E17>0,SUMPRODUCT(($F$5:$F17-$E$5:$E17)*($F18/SUM($F18:$F$35))),SUMPRODUCT(($F$5:$F17-$E$5:$E17)*($F18/SUMIF($E$6:$E$35,"",$F$6:$F$35))*($E$5:$E17>0))),"") -> 485270.9417 | H18: 485270.9417 | I18: 0.8903623994 | J18: 4137482.273 | K18: 3973046 | L18: 0.9602569238 | M18: 0.03714956113 | N18: -53203.94168 | O18: 1437 | P18: 1355.958981 | Q18: =IFERROR($P18+IF($O17>0,SUMPRODUCT(($P$5:$P17-$O$5:$O17)*($P18/SUM($P18:$P$35))),SUMPRODUCT(($P$5:$P17-$O$5:$O17)*($P18/SUMIF($O$6:$O$35,"",$P$6:$P$35))*($O$5:$O17>0))),"") -> 1381.498472 | R18: 1381.498472 | S18: 1.040174874 | T18: 300.6729297 | U18: 300.6729297 | V18: 6459 | W18: 4.494780793 | X18: 4.494780793 | Y18: 66.89379161 | Z18: 66.89379161 | AA18: 351.2641899
A19: 0.03822332596 | B19: 6421.518761 | C19: 1900-01-01 | D19: 2019-12-15 | E19: 425273 | F19: 449506.3133 | G19: =IFERROR($F19+IF($E18>0,SUMPRODUCT(($F$5:$F18-$E$5:$E18)*($F19/SUM($F19:$F$35))),SUMPRODUCT(($F$5:$F18-$E$5:$E18)*($F19/SUMIF($E$6:$E$35,"",$F$6:$F$35))*($E$5:$E18>0))),"") -> 459203.2593 | H19: 459203.2593 | I19: 0.9261105869 | J19: 4586988.587 | K19: 4398319 | L19: 0.9588685293 | M19: 0.03455253426 | N19: -33930.2593 | O19: 1342 | P19: 1261.1675 | Q19: =IFERROR($P19+IF($O18>0,SUMPRODUCT(($P$5:$P18-$O$5:$O18)*($P19/SUM($P19:$P$35))),SUMPRODUCT(($P$5:$P18-$O$5:$O18)*($P19/SUMIF($O$6:$O$35,"",$P$6:$P$35))*($O$5:$O18>0))),"") -> 1281.734683 | R19: 1281.734683 | S19: 1.047018559 | T19: 316.8949329 | U19: 316.8949329 | V19: 5731 | W19: 4.270491803 | X19: 4.270491803 | Y19: 74.20572326 | Z19: 74.20572326 | AA19: 358.2670154 | AR19: 1
A20: 0.02332050223 | B20: 3917.844375 | C20: 1900-01-02 | D20: 2019-12-16 | E20: 296632 | F20: 274249.1063 | G20: =IFERROR($F20+IF($E19>0,SUMPRODUCT(($F$5:$F19-$E$5:$E19)*($F20/SUM($F20:$F$35))),SUMPRODUCT(($F$5:$F19-$E$5:$E19)*($F20/SUMIF($E$6:$E$35,"",$F$6:$F$35))*($E$5:$E19>0))),"") -> 281462.599 | H20: 281462.599 | I20: 1.053894909 | J20: 4861237.693 | K20: 4694951 | L20: 0.9657933425 | M20: 0.02758138971 | N20: 15169.40102 | O20: 1107 | P20: 1006.720724 | Q20: =IFERROR($P20+IF($O19>0,SUMPRODUCT(($P$5:$P19-$O$5:$O19)*($P20/SUM($P20:$P$35))),SUMPRODUCT(($P$5:$P19-$O$5:$O19)*($P20/SUMIF($O$6:$O$35,"",$P$6:$P$35))*($O$5:$O19>0))),"") -> 1020.207816 | R20: 1020.207816 | S20: 1.085073044 | T20: 267.9602529 | U20: 267.9602529 | V20: 4731 | W20: 4.273712737 | X20: 4.273712737 | Y20: 62.69964067 | Z20: 62.69964067 | AA20: 275.8875149 | AR20: 1
A21: 0.02717625945 | B21: 4565.611587 | C21: 1900-01-03 | D21: 2019-12-17 | E21: 281791 | F21: 319592.8111 | G21: =IFERROR($F21+IF($E20>0,SUMPRODUCT(($F$5:$F20-$E$5:$E20)*($F21/SUM($F21:$F$35))),SUMPRODUCT(($F$5:$F20-$E$5:$E20)*($F21/SUMIF($E$6:$E$35,"",$F$6:$F$35))*($E$5:$E20>0))),"") -> 327296.2265 | H21: 327296.2265 | I21: 0.8609662354 | J21: 5180830.504 | K21: 4976742 | L21: 0.9606069907 | M21: 0.02998872817 | N21: -45505.2265 | O21: 1031 | P21: 1094.588578 | Q21: =IFERROR($P21+IF($O20>0,SUMPRODUCT(($P$5:$P20-$O$5:$O20)*($P21/SUM($P21:$P$35))),SUMPRODUCT(($P$5:$P20-$O$5:$O20)*($P21/SUMIF($O$6:$O$35,"",$P$6:$P$35))*($O$5:$O20>0))),"") -> 1104.429419 | R21: 1104.429419 | S21: 0.933513706 | T21: 273.3181377 | U21: 273.3181377 | V21: 4104 | W21: 3.980601358 | X21: 3.980601358 | Y21: 68.66252437 | Z21: 68.66252437 | AA21: 296.3487035 | AE21: 3002
A22: 0.02594527423 | B22: 4358.806071 | C22: 1900-01-04 | D22: 2019-12-18 | F22: 305116.425 | G22: =IFERROR($F22+IF($E21>0,SUMPRODUCT(($F$5:$F21-$E$5:$E21)*($F22/SUM($F22:$F$35))),SUMPRODUCT(($F$5:$F21-$E$5:$E21)*($F22/SUMIF($E$6:$E$35,"",$F$6:$F$35))*($E$5:$E21>0))),"") -> 314581.2601 | H22: 314581.2601 | I22: 0 | J22: 5485946.929 | K22: 4976742 | L22: 0.9071801212 | M22: 0.0288732375 | N22: -314581.2601 | P22: 1053.873169 | Q22: =IFERROR($P22+IF($O21>0,SUMPRODUCT(($P$5:$P21-$O$5:$O21)*($P22/SUM($P22:$P$35))),SUMPRODUCT(($P$5:$P21-$O$5:$O21)*($P22/SUMIF($O$6:$O$35,"",$P$6:$P$35))*($O$5:$O21>0))),"") -> 1067.508161 | R22: 1067.508161 | S22: 0 | U22: 0 | X22: 0 | Y22: 0 | AA22: 294.6874522
A23: 0.02627110608 | B23: 4413.545822 | C23: 1900-01-05 | D23: 2019-12-19 | F23: 308948.2075 | G23: =IFERROR($F23+IF($E22>0,SUMPRODUCT(($F$5:$F22-$E$5:$E22)*($F23/SUM($F23:$F$35))),SUMPRODUCT(($F$5:$F22-$E$5:$E22)*($F23/SUMIF($E$6:$E$35,"",$F$6:$F$35))*($E$5:$E22>0))),"") -> 318531.9061 | H23: 318531.9061 | I23: 0 | J23: 5794895.137 | K23: 4976742 | L23: 0.8588148504 | M23: 0.03001090008 | N23: -318531.9061 | P23: 1095.397853 | Q23: =IFERROR($P23+IF($O22>0,SUMPRODUCT(($P$5:$P22-$O$5:$O22)*($P23/SUM($P23:$P$35))),SUMPRODUCT(($P$5:$P22-$O$5:$O22)*($P23/SUMIF($O$6:$O$35,"",$P$6:$P$35))*($O$5:$O22>0))),"") -> 1109.570091 | R23: 1109.570091 | S23: 0 | U23: 0 | X23: 0 | Y23: 0 | AA23: 287.0768677 | AR23: 1
A24: 0.04213407066 | B24: 7078.523871 | C24: 1900-01-06 | D24: 2019-12-20 | F24: 495496.671 | G24: =IFERROR($F24+IF($E23>0,SUMPRODUCT(($F$5:$F23-$E$5:$E23)*($F24/SUM($F24:$F$35))),SUMPRODUCT(($F$5:$F23-$E$5:$E23)*($F24/SUMIF($E$6:$E$35,"",$F$6:$F$35))*($E$5:$E23>0))),"") -> 510867.1785 | H24: 510867.1785 | I24: 0 | J24: 6290391.807 | K24: 4976742 | L24: 0.7911656622 | M24: 0.03290288733 | N24: -510867.1785 | P24: 1200.955387 | Q24: =IFERROR($P24+IF($O23>0,SUMPRODUCT(($P$5:$P23-$O$5:$O23)*($P24/SUM($P24:$P$35))),SUMPRODUCT(($P$5:$P23-$O$5:$O23)*($P24/SUMIF($O$6:$O$35,"",$P$6:$P$35))*($O$5:$O23>0))),"") -> 1216.493327 | R24: 1216.493327 | S24: 0 | U24: 0 | X24: 0 | Y24: 0 | AA24: 419.9506625 | AR24: 1
A25: 0.0428500341 | B25: 7198.805729 | C25: 1900-01-07 | D25: 2019-12-21 | F25: 503916.4011 | G25: =IFERROR($F25+IF($E24>0,SUMPRODUCT(($F$5:$F24-$E$5:$E24)*($F25/SUM($F25:$F$35))),SUMPRODUCT(($F$5:$F24-$E$5:$E24)*($F25/SUMIF($E$6:$E$35,"",$F$6:$F$35))*($E$5:$E24>0))),"") -> 519548.092 | H25: 519548.092 | I25: 0 | J25: 6794308.209 | K25: 4976742 | L25: 0.7324869357 | M25: 0.03884517783 | N25: -519548.092 | P25: 1417.848991 | Q25: =IFERROR($P25+IF($O24>0,SUMPRODUCT(($P$5:$P24-$O$5:$O24)*($P25/SUM($P25:$P$35))),SUMPRODUCT(($P$5:$P24-$O$5:$O24)*($P25/SUMIF($O$6:$O$35,"",$P$6:$P$35))*($O$5:$O24>0))),"") -> 1436.193096 | R25: 1436.193096 | S25: 0 | U25: 0 | X25: 0 | Y25: 0 | AA25: 361.7536483 | AR25: 1
A26: 0.04298166559 | B26: 7220.919819 | C26: 1900-01-01 | D26: 2019-12-22 | F26: 505464.3873 | G26: =IFERROR($F26+IF($E25>0,SUMPRODUCT(($F$5:$F25-$E$5:$E25)*($F26/SUM($F26:$F$35))),SUMPRODUCT(($F$5:$F25-$E$5:$E25)*($F26/SUMIF($E$6:$E$35,"",$F$6:$F$35))*($E$5:$E25>0))),"") -> 521144.0974 | H26: 521144.0974 | I26: 0 | J26: 7299772.596 | K26: 4976742 | L26: 0.6817667173 | M26: 0.03968938939 | N26: -521144.0974 | P26: 1448.662713 | Q26: =IFERROR($P26+IF($O25>0,SUMPRODUCT(($P$5:$P25-$O$5:$O25)*($P26/SUM($P26:$P$35))),SUMPRODUCT(($P$5:$P25-$O$5:$O25)*($P26/SUMIF($O$6:$O$35,"",$P$6:$P$35))*($O$5:$O25>0))),"") -> 1467.405485 | R26: 1467.405485 | S26: 0 | U26: 0 | X26: 0 | Y26: 0 | AA26: 355.1466195
A27: 0.02512837088 | B27: 4221.566308 | C27: 1900-01-02 | D27: 2019-12-23 | F27: 295509.6416 | G27: =IFERROR($F27+IF($E26>0,SUMPRODUCT(($F$5:$F26-$E$5:$E26)*($F27/SUM($F27:$F$35))),SUMPRODUCT(($F$5:$F26-$E$5:$E26)*($F27/SUMIF($E$6:$E$35,"",$F$6:$F$35))*($E$5:$E26>0))),"") -> 304676.4704 | H27: 304676.4704 | I27: 0 | J27: 7595282.237 | K27: 4976742 | L27: 0.6552412201 | M27: 0.0259980028 | N27: -304676.4704 | P27: 948.9271023 | Q27: =IFERROR($P27+IF($O26>0,SUMPRODUCT(($P$5:$P26-$O$5:$O26)*($P27/SUM($P27:$P$35))),SUMPRODUCT(($P$5:$P26-$O$5:$O26)*($P27/SUMIF($O$6:$O$35,"",$P$6:$P$35))*($O$5:$O26>0))),"") -> 961.2043042 | R27: 961.2043042 | S27: 0 | U27: 0 | X27: 0 | Y27: 0 | AA27: 316.9736851
A28: 0.03335021209 | B28: 5602.835632 | C28: 1900-01-03 | D28: 2019-12-24 | F28: 392198.4942 | G28: =IFERROR($F28+IF($E27>0,SUMPRODUCT(($F$5:$F27-$E$5:$E27)*($F28/SUM($F28:$F$35))),SUMPRODUCT(($F$5:$F27-$E$5:$E27)*($F28/SUMIF($E$6:$E$35,"",$F$6:$F$35))*($E$5:$E27>0))),"") -> 404364.6504 | H28: 404364.6504 | I28: 0 | J28: 7987480.732 | K28: 4976742 | L28: 0.6230677941 | M28: 0.03196374567 | N28: -404364.6504 | P28: 1166.676717 | Q28: =IFERROR($P28+IF($O27>0,SUMPRODUCT(($P$5:$P27-$O$5:$O27)*($P28/SUM($P28:$P$35))),SUMPRODUCT(($P$5:$P27-$O$5:$O27)*($P28/SUMIF($O$6:$O$35,"",$P$6:$P$35))*($O$5:$O27>0))),"") -> 1181.771159 | R28: 1181.771159 | S28: 0 | U28: 0 | X28: 0 | Y28: 0 | AA28: 342.1683185
A29: 0.03387562258 | B29: 5691.104594 | C29: 1900-01-04 | D29: 2019-12-25 | F29: 398377.3216 | G29: =IFERROR($F29+IF($E28>0,SUMPRODUCT(($F$5:$F28-$E$5:$E28)*($F29/SUM($F29:$F$35))),SUMPRODUCT(($F$5:$F28-$E$5:$E28)*($F29/SUMIF($E$6:$E$35,"",$F$6:$F$35))*($E$5:$E28>0))),"") -> 410735.1475 | H29: 410735.1475 | I29: 0 | J29: 8385858.053 | K29: 4976742 | L29: 0.5934684284 | M29: 0.03208892532 | N29: -410735.1475 | P29: 1171.245774 | Q29: =IFERROR($P29+IF($O28>0,SUMPRODUCT(($P$5:$P28-$O$5:$O28)*($P29/SUM($P29:$P$35))),SUMPRODUCT(($P$5:$P28-$O$5:$O28)*($P29/SUMIF($O$6:$O$35,"",$P$6:$P$35))*($O$5:$O28>0))),"") -> 1186.399331 | R29: 1186.399331 | S29: 0 | U29: 0 | X29: 0 | Y29: 0 | AA29: 346.203118
A30: 0.03877188616 | B30: 6513.676874 | C30: 1900-01-05 | D30: 2019-12-26 | F30: 455957.3812 | G30: =IFERROR($F30+IF($E29>0,SUMPRODUCT(($F$5:$F29-$E$5:$E29)*($F30/SUM($F30:$F$35))),SUMPRODUCT(($F$5:$F29-$E$5:$E29)*($F30/SUMIF($E$6:$E$35,"",$F$6:$F$35))*($E$5:$E29>0))),"") -> 470101.3639 | H30: 470101.3639 | I30: 0 | J30: 8841815.434 | K30: 4976742 | L30: 0.5628642711 | M30: 0.03557932622 | N30: -470101.3639 | P30: 1298.645407 | Q30: =IFERROR($P30+IF($O29>0,SUMPRODUCT(($P$5:$P29-$O$5:$O29)*($P30/SUM($P30:$P$35))),SUMPRODUCT(($P$5:$P29-$O$5:$O29)*($P30/SUMIF($O$6:$O$35,"",$P$6:$P$35))*($O$5:$O29>0))),"") -> 1315.447258 | R30: 1315.447258 | S30: 0 | U30: 0 | X30: 0 | Y30: 0 | AA30: 357.3699828
A31: 0.04132015118 | B31: 6941.785397 | C31: 1900-01-06 | D31: 2019-12-27 | F31: 485924.9778 | G31: =IFERROR($F31+IF($E30>0,SUMPRODUCT(($F$5:$F30-$E$5:$E30)*($F31/SUM($F31:$F$35))),SUMPRODUCT(($F$5:$F30-$E$5:$E30)*($F31/SUMIF($E$6:$E$35,"",$F$6:$F$35))*($E$5:$E30>0))),"") -> 500998.5676 | H31: 500998.5676 | I31: 0 | J31: 9327740.412 | K31: 4976742 | L31: 0.5335420777 | M31: 0.03963790124 | N31: -500998.5676 | P31: 1446.783395 | Q31: =IFERROR($P31+IF($O30>0,SUMPRODUCT(($P$5:$P30-$O$5:$O30)*($P31/SUM($P31:$P$35))),SUMPRODUCT(($P$5:$P30-$O$5:$O30)*($P31/SUMIF($O$6:$O$35,"",$P$6:$P$35))*($O$5:$O30>0))),"") -> 1465.501853 | R31: 1465.501853 | S31: 0 | U31: 0 | X31: 0 | Y31: 0 | AA31: 341.8614358
A32: 0.05130241534 | B32: 8618.805777 | C32: 1900-01-07 | D32: 2019-12-28 | F32: 603316.4044 | G32: =IFERROR($F32+IF($E31>0,SUMPRODUCT(($F$5:$F31-$E$5:$E31)*($F32/SUM($F32:$F$35))),SUMPRODUCT(($F$5:$F31-$E$5:$E31)*($F32/SUMIF($E$6:$E$35,"",$F$6:$F$35))*($E$5:$E31>0))),"") -> 622031.5237 | H32: 622031.5237 | I32: 0 | J32: 9931056.817 | K32: 4976742 | L32: 0.5011291438 | M32: 0.04399559622 | N32: -622031.5237 | P32: 1605.839262 | Q32: =IFERROR($P32+IF($O31>0,SUMPRODUCT(($P$5:$P31-$O$5:$O31)*($P32/SUM($P32:$P$35))),SUMPRODUCT(($P$5:$P31-$O$5:$O31)*($P32/SUMIF($O$6:$O$35,"",$P$6:$P$35))*($O$5:$O31>0))),"") -> 1626.615582 | R32: 1626.615582 | S32: 0 | U32: 0 | X32: 0 | Y32: 0 | AA32: 382.408438
A33: 0.05654473766 | B33: 9499.515926 | C33: 1900-01-01 | D33: 2019-12-29 | F33: 664966.1148 | G33: =IFERROR($F33+IF($E32>0,SUMPRODUCT(($F$5:$F32-$E$5:$E32)*($F33/SUM($F33:$F$35))),SUMPRODUCT(($F$5:$F32-$E$5:$E32)*($F33/SUMIF($E$6:$E$35,"",$F$6:$F$35))*($E$5:$E32>0))),"") -> 685593.6332 | H33: 685593.6332 | I33: 0 | J33: 10596022.93 | K33: 4976742 | L33: 0.469680184 | M33: 0.05025084918 | N33: -685593.6332 | P33: 1834.155995 | Q33: =IFERROR($P33+IF($O32>0,SUMPRODUCT(($P$5:$P32-$O$5:$O32)*($P33/SUM($P33:$P$35))),SUMPRODUCT(($P$5:$P32-$O$5:$O32)*($P33/SUMIF($O$6:$O$35,"",$P$6:$P$35))*($O$5:$O32>0))),"") -> 1857.886272 | R33: 1857.886272 | S33: 0 | U33: 0 | X33: 0 | Y33: 0 | AA33: 369.0180843 | AR33: 3
A34: 0.04981205606 | B34: 8368.425418 | C34: 1900-01-02 | D34: 2019-12-30 | F34: 585789.7792 | G34: =IFERROR($F34+IF($E33>0,SUMPRODUCT(($F$5:$F33-$E$5:$E33)*($F34/SUM($F34:$F$35))),SUMPRODUCT(($F$5:$F33-$E$5:$E33)*($F34/SUMIF($E$6:$E$35,"",$F$6:$F$35))*($E$5:$E33>0))),"") -> 603961.2156 | H34: 603961.2156 | I34: 0 | J34: 11181812.71 | K34: 4976742 | L34: 0.4450747056 | M34: 0.0437633619 | N34: -603961.2156 | P34: 1597.362709 | Q34: =IFERROR($P34+IF($O33>0,SUMPRODUCT(($P$5:$P33-$O$5:$O33)*($P34/SUM($P34:$P$35))),SUMPRODUCT(($P$5:$P33-$O$5:$O33)*($P34/SUMIF($O$6:$O$35,"",$P$6:$P$35))*($O$5:$O33>0))),"") -> 1618.029359 | R34: 1618.029359 | S34: 0 | U34: 0 | X34: 0 | Y34: 0 | AA34: 373.2696271 | AR34: 3
A35: 0.04916558583 | B35: 8259.818419 | C35: =WEEKDAY(D35) -> 1900-01-03 | D35: 2019-12-31 | F35: 578187.2893 | G35: =IFERROR($F35+IF($E34>0,SUMPRODUCT(($F$5:$F34-$E$5:$E34)*($F35/SUM($F35:$F$35))),SUMPRODUCT(($F$5:$F34-$E$5:$E34)*($F35/SUMIF($E$6:$E$35,"",$F$6:$F$35))*($E$5:$E34>0))),"") -> 596122.8934 | H35: 596122.8934 | I35: 0 | J35: 11760000 | K35: 4976742 | L35: =K35/J35 -> 0.4231923469 | M35: 0.03602634989 | N35: -596122.8934 | P35: 1314.961771 | Q35: =IFERROR($P35+IF($O34>0,SUMPRODUCT(($P$5:$P34-$O$5:$O34)*($P35/SUM($P35:$P$35))),SUMPRODUCT(($P$5:$P34-$O$5:$O34)*($P35/SUMIF($O$6:$O$35,"",$P$6:$P$35))*($O$5:$O34>0))),"") -> 1331.974723 | R35: =MAX(P35,Q35) -> 1331.974723 | S35: =IFERROR(O35/R35,0) -> 0 | U35: =IFERROR(T35,0) -> 0 | W35: =V35/O35 ->  | X35: =IFERROR(W35,0) -> 0 | Y35: =IFERROR(Z35,0) -> 0 | AA35: 447.5482029
AA36: =ROUNDUP(AVERAGE(AA5:AA35),0) -> 319 | AR36: =VLOOKUP(A1,AL5:AR35,7,0) -> 
D37: ИТОГО | E37: =SUM(E5:E35) -> 4976742 | F37: =SUM(F5:F35) -> 11760000 | G37: =E37/F37 -> 0.4231923469 | H37: =F37-E37 -> 6783258 | I37: =VLOOKUP(A2,бд,9,0) -> 0.9657933425 | O37: =SUM(O5:O35) -> 17658 | R37: =SUM(P5:P35) -> 36500 | T37: =E37/#REF! ->  | U37: =E37/O37 -> 281.8406388 | V37: =SUM(V5:V35) -> 76401 | W37: =V37/#REF! ->  | X37: =V37/O37 -> 4.326707441 | Y37: =E37/V37 -> 65.13974948 | AD37: =SUM(AD5:AD35) -> 35087 | AE37: =SUM(AE5:AE35) -> 3002
AM39: −2°
AM40: 01:00:00
AM41: −2°
AM42: 02:00:00
AM43: −2°
AM44: 03:00:00
AM45: −2°
AM46: 04:00:00
AM47: −2°
AM48: 05:00:00
AM49: −1°
AM50: 06:00:00
AM51: 0°
AM52: 07:00:00
AM53: 0°
AM54: 08:00:00
AM55: 0°
AM56: 09:00:00
AM57: +1°
AM58: 09:21:00
AM59: Восход
AM60: 10:00:00
AM61: +1°
AM62: 11:00:00
AM63: +1°
AM64: 12:00:00
AM65: +1°
AM66: 13:00:00
AM67: +1°
AM68: 14:00:00
AM69: +1°
AM70: 15:00:00
AM71: +1°
AM72: 16:00:00
AM73: 0°
AM74: 16:17:00
AM75: Закат
AM76: 17:00:00
AM77: +1°
AM78: Погода на карте
AM79: Не удалось получить данные
AM80: Попробовать снова
AM81: В ближайшие два часа осадков не ожидается
AM82: Показать на карте
AM83: осадки
AM84: температура
AM85: Ветер
AM86: Давление
AM87: Пыльца
AM89: Прогноз на 10 дней
AM91: Подробный прогноз на 10 днейНа месяц
AM93: Ср
AM94: 2019-12-04
AM95: −9°
AM96: −11°
AM97: Небольшой снег
AM98: Чт
AM99: 2019-12-05
AM100: −9°
AM101: −11°
AM102: Небольшой снег
AM103: Пт
AM104: 2019-12-06
AM105: +1°
AM106: −11°
AM107: Снег
AM108: Вчера
AM109: 2019-12-07
AM110: +1°
AM111: 0°
AM112: Небольшой снег
AM113: Сегодня
AM114: 2019-12-08
AM115: днём0°
AM116: ночью−2°
AM117: Небольшой снег
AM118: Пн
AM119: 2019-12-09
AM120: +1°
AM121: −2°
AM122: Пасмурно
AM123: Вт
AM124: 2019-12-10
AM125: −2°
AM126: −2°
AM127: Пасмурно
AM128: Ср
AM129: 2019-12-11
AM130: −1°
AM131: −3°
AM132: Небольшой снег
AM133: Чт
AM134: 2019-12-12
AM135: −3°
AM136: −9°
AM137: Небольшой снег
AM138: Пт
AM139: 2019-12-13
AM140: −7°
AM141: −10°
AM142: Пасмурно
AM143: Сб
AM144: 2019-12-14
AM145: −7°
AM146: −12°
AM147: Облачно с прояснениями
AM148: Вс
AM149: 2019-12-15
AM150: −10°
AM151: −10°
AM152: Пасмурно
AM153: Пн
AM154: 2019-12-16
AM155: −9°
AM156: −12°
AM157: Небольшой снег
AM158: Вт
AM159: 2019-12-17
AM160: −12°
AM161: −14°
AM162: Небольшой снег
AM163: Ср
AM164: 2019-12-18
AM165: −14°
AM166: −17°
AM167: Пасмурно
AM168: Чт
AM169: 2019-12-19
AM170: −16°
AM171: −17°
AM172: Ясно
AM173: Пт
AM174: 2019-12-20
AM175: −16°
AM176: −15°
AM177: Снег
AM178: Сб
AM179: 2019-12-21
AM180: −11°
AM181: −11°
AM182: Снег
AM183: Вс
AM184: 2019-12-22
AM185: −10°
AM186: −12°
AM187: Пасмурно
AM188: Пн
AM189: 2019-12-23
AM190: −11°
AM191: −11°
AM192: Пасмурно
AM193: Вт
AM194: 2019-12-24
AM195: −10°
AM196: −12°
AM197: Снег
AM198: Ср
AM199: 2019-12-25
AM200: −11°
AM201: −13°
AM202: Пасмурно
AM203: Чт
AM204: 2019-12-26
... 86 more rows

Sheet шаблон плана
A1: ПЛАН НА | B1: =TODAY() -> 2019-12-17
A2: 320000 | B2: РУБ.
A4: Текущий прогноз выполнения плана:
A5: =IFERROR(руб.!I37,0) -> 0.9657933425
A6: =IFERROR(IF(руб.!H37>0,CONCATENATE("Выполняем план",IF(руб.!G37=0,CONCATENATE(". Осталось: ",TEXT(руб.!H37,"# ##р.")),CONCATENATE(" на ",TEXT(руб.!G37,"###%"),". Осталось: ",TEXT(руб.!H37,"# ##р.")))),CONCATENATE("Перевыполняем план на ",TEXT(руб.!G37,"###%")," (",TEXT(руб.!H37*-1,"# ##р."),")")),"") -> Выполняем план на 42%. Осталось: 67832 58р.
A8: Покупатель | B8: 1026
A10: Средний чек | B10: 315
A12: Количество штук в чеке | B12: =руб.!#REF! -> 
